[Event "LEM Niedersachsen-A-Open 2025"]
[Site "Verden"]
[Date "2025.01.04"]
[Round "5.1"]
[White "Laubsch, Bernd"]
[Black "Stotyn, Fabian"]
[Result "0-1"]
[ECO "B29"]
[WhiteElo "2215"]
[BlackElo "2123"]
[Annotator "TA"]
[PlyCount "104"]
[EventDate "2024.12.27"]
[EventType "swiss"]
[EventCountry "GER"]
[SourceTitle "playchess.com"]
[Source "ChessBase"]
[SourceQuality "1"]
[TimeControl "40/5400+30:1800+30"]

{[%evp 19,104,45,59,61,48,51,51,54,46,46,47,43,41,42,49,45,57,47,81,85,86,104,106,108,99,99,100,98,100,100,98,54,110,32,30,4,3,9,6,0,6,-47,-61,-60,-61,-70,-76,-76,-76,-76,-74,-69,-65,-68,-55,-57,-35,-35,-35,-66,-57,-57,-57,-57,-57,-95,-30,-436,-454,-446,-457,-441,-457,-457,-450,-442,-440,-622,-620,-29973,-29971,-29976,-29977,-29977,-29978,-29978,-29979]} 1. e4 {[%emt 0:00:11]} c5 {[%emt 0:00:10]} 2. Nf3 {[%emt 0:00:09]} Nf6 {[%emt 0:00:05]} 3. e5 {[%emt 0:00:36]} Nd5 {[%emt 0:00:04]} 4. Nc3 {[%emt 0:00:55]} e6 {[%emt 0:00:39]} 5. Nxd5 {[%emt 0:01:16]} exd5 {[%emt 0:01:39]} 6. d4 {[%emt 0:00:44]} Nc6 {[%emt 0:00:45]} 7. dxc5 {[%emt 0:03:42]} Bxc5 {[%emt 0:01:06]} 8. Qxd5 {[%emt 0:03:57]} Qb6 {[%emt 0:02:11]} 9. Bc4 {[%emt 0:04:08]} Bxf2+ {[%emt 0:02:08]} 10. Ke2 {[%emt 0:00:25]} O-O {[%emt 0:00:17][%cal Od7d6] And now ...d6! would win.} 11. Rf1 $1 {[%emt 0:00:43]} Bc5 {[%emt 0:00:04][%cal Od7d6] White must now prevent ...d6!} 12. Ng5 {[%emt 0:04:37]} Nxe5 {[%emt 0:01:11]} 13. Nxf7 $1 {[%emt 0:02:28] White is slightly better.} Nxf7 {[%emt 0:00:31]} 14. Rxf7 {[%emt 0:00:38]} Qe6+ {[%emt 0:00:53]} 15. Qxe6 {[%emt 0:00:26]} dxe6 {[%emt 0:00:08]} 16. Rxf8+ {[%emt 0:00:44]} Kxf8 {[%emt 0:00:21]} 17. Bf4 {[%emt 0:06:39]} Bd7 {[%emt 0:05:06]} 18. Rf1 {[%emt 0:03:23]} Ke8 {[%emt 0:04:07]} 19. Be5 {[%emt 0:14:52]} g6 {[%emt 0:04:35]} 20. Rf3 $1 {[%emt 0:10:24]} Ke7 {[%emt 0:11:38]} 21. Bf6+ $1 {[%emt 0:10:31]} Ke8 {[%emt 0:00:52]} 22. Rh3 {[%emt 0:03:22]} Kf7 {[%emt 0:01:50]} 23. Be5 {[%emt 0:04:30]} (23. Rxh7+ Kxf6 24. Rxd7 b6) 23... Kg8 {[%emt 0:03:09]} 24. Rd3 {[%emt 0:10:33]} Bc6 {[%emt 0:01:06][%cal Oa8e8]} 25. c3 {[%emt 0:11:41]} a5 {[%emt 0:03:28]} (25... Kf7 $14) 26. g4 {[%emt 0:00:43]} ({White should play} 26. Bxe6+ $16 Kf8 27. Bd5) 26... Re8 $1 $14 {[%emt 0:01:49]} 27. g5 {[%emt 0:00:22]} b5 {[%emt 0:01:13]} 28. Bb3 {[%emt 0:00:07]} a4 {[%emt 0:00:10]} 29. Bd1 {[%emt 0:00:33]} Bd5 {[%emt 0:00:28][%cal Od5c4] ...Bc4! is the strong threat.} 30. Kd2 {[%emt 0:00:40]} ({Better is} 30. b3 $11) 30... Be7 $1 $15 {[%emt 0:00:54]} 31. h4 {[%emt 0:00:51]} Bxa2 {[%emt 0:01:18]} 32. Bf3 {[%emt 0:01:02]} Bc4 {[%emt 0:00:39]} 33. Rd7 {[%emt 0:00:35]} Rd8 {[%emt 0:00:07]} 34. Rxd8+ {[%emt 0:00:21]} Bxd8 $17 {[%emt 0:00:06][%mdl 4096] Endgame. KBB-KBB} 35. Ke3 {[%emt 0:00:35]} Bb6+ {[%emt 0:00:28]} 36. Kf4 {[%emt 0:00:32]} Bf2 {[%emt 0:00:25]} 37. h5 {[%emt 0:00:10]} Kf7 {[%emt 0:00:42]} 38. Be4 {[%emt 0:00:35]} Bc5 {[%emt 0:03:18]} 39. h6 {[%emt 0:00:15]} Be7 {[%emt 0:05:57]} 40. Bc2 {[%emt 0:00:57]} a3 {[%emt 0:01:53]} 41. bxa3 {[%emt 0:30:08]} Bxa3 {[%emt 0:30:05] aiming for ...Bc1+.} 42. Bf6 {[%emt 0:00:58]} Bb2 {[%emt 0:00:45]} (42... Bc1+ $1 $17 43. Ke4 Bd5+ 44. Kd4 Bc4) 43. Be5 $2 {[%emt 0:00:00][%mdl 8192] Now White is beyond hope.} (43. Ke3 $11) 43... Bc1+ $19 {[%emt 0:00:00]} 44. Kg4 {[%emt 0:00:00]} Be2+ {[%emt 0:00:00]} 45. Kh4 {[%emt 0:00:00] [#]} Bb2 $1 {[%emt 0:00:00]} 46. Kg3 {[%emt 0:00:00] [#]} b4 $1 {[%emt 0:00:00]} 47. Kf2 {[%emt 0:00:00]} Bg4 {[%emt 0:00:00]} (47... Bxc3 $2 {too greedy.} 48. Bxc3 Bg4 49. Bxb4 $18) 48. Ke3 {[%emt 0:00:00]} (48. Bf4 $142 Bxc3 (48... bxc3 $2 49. Ke1 $19) 49. Bb3) 48... Bxc3 {[%emt 0:00:00]} 49. Bxc3 {[%emt 0:00:00]} bxc3 {[%emt 0:00:00] Black mates.} 50. Kd4 {[%emt 0:00:00]} Bf5 {[%emt 0:00:00]} 51. Kxc3 {[%emt 0:00:00]} Bxc2 {[%emt 0:00:00]} 52. Kxc2 {[%emt 0:00:00]} e5 {[%emt 0:00:00] Weighted Error Value: White=0.45/Black=0.05 (flawless) .  Loses game:     	White=1     	---        Mistake:       	White=3     	Black=2      Inaccurate:     	White=5     	Black=1      OK:         	White=16    	Black=14     Best:        	White=2     	Black=4      Strong:       	White=3     	Black=4} 0-1

[Event "LEM Niedersachsen-A-Open 2025"]
[Site "Verden"]
[Date "2025.01.04"]
[Round "5.2"]
[White "Weigand, Anton"]
[Black "Hilker, Bjoern"]
[Result "1-0"]
[ECO "C43"]
[WhiteElo "2092"]
[BlackElo "1993"]
[Annotator "TA"]
[PlyCount "37"]
[EventDate "2024.12.27"]
[EventType "swiss"]
[EventCountry "GER"]
[SourceTitle "playchess.com"]
[Source "ChessBase"]
[SourceQuality "1"]
[TimeControl "40/5400+30:1800+30"]

{[%evp 20,37,12,-14,-20,-10,-7,-12,-11,-84,-67,-68,-65,-65,245,235,634,580,643,637]} 1. e4 {[%emt 0:00:04]} e5 {[%emt 0:00:03]} 2. Nf3 {[%emt 0:00:04]} Nf6 {[%emt 0:00:04]} 3. d4 {[%emt 0:00:33]} exd4 {[%emt 0:00:50]} 4. e5 {[%emt 0:00:29]} Ne4 {[%emt 0:00:45]} 5. Qxd4 {[%emt 0:00:12]} d5 {[%emt 0:00:21]} 6. exd6 {[%emt 0:00:20]} Nxd6 {[%emt 0:00:20]} 7. Bd3 {[%emt 0:06:37]} Nc6 {[%emt 0:00:39]} 8. Qf4 {[%emt 0:00:11]} g6 {[%emt 0:02:43]} 9. O-O {[%emt 0:04:03]} Bg7 {[%emt 0:00:15]} 10. Re1+ {[%emt 0:00:07]} Be6 {[%emt 0:00:13]} 11. Ng5 {[%emt 0:07:43]} O-O {[%emt 0:14:51]} 12. Nxe6 {[%emt 0:02:40]} fxe6 {[%emt 0:00:53]} 13. Qg4 {[%emt 0:08:49]} Bd4 {[%emt 0:03:25]} 14. Qxe6+ {[%emt 0:06:14]} (14. Rf1 $11 {remains equal.}) 14... Kh8 {[%emt 0:02:14]} 15. Rf1 $1 {[%emt 0:00:19] [#]} Rxf2 $1 {[%emt 0:14:55]} 16. Rxf2 {[%emt 0:01:15]} Qh4 $2 {[%emt 0:02:25][%mdl 8192]} (16... Bxf2+ $15 {stays ahead.} 17. Kh1 (17. Kxf2 $2 {is the wrong capture.} Qh4+ 18. Kg1 Re8 $19) 17... Qh4) 17. Be3 $18 {[%emt 0:11:27]} Re8 $2 {[%emt 0:01:43]} (17... Bxb2 18. c3 Re8) 18. Bxd4+ {[%emt 0:02:24]} Qxd4 {[%emt 0:00:54]} 19. Qf6+ {[%emt 0:00:09]} 1-0

[Event "LEM Niedersachsen-A-Open 2025"]
[Site "Verden"]
[Date "2025.01.04"]
[Round "5.3"]
[White "Moeller, Jonas"]
[Black "Kieselbach, Marvin"]
[Result "0-1"]
[ECO "B56"]
[WhiteElo "1934"]
[BlackElo "2008"]
[Annotator "RC"]
[PlyCount "136"]
[EventDate "2024.12.27"]
[EventType "swiss"]
[EventCountry "GER"]
[SourceTitle "playchess.com"]
[Source "ChessBase"]
[SourceQuality "1"]
[TimeControl "40/5400+30:1800+30"]

1. e4 {[%emt 0:00:03]} c5 {[%emt 0:00:37]} 2. Nf3 {[%emt 0:00:04]} Nc6 {[%emt 0:00:19]} 3. d4 {[%emt 0:00:05]} cxd4 {[%emt 0:00:06]} 4. Nxd4 {[%emt 0:00:02]} Nf6 {[%emt 0:00:31]} 5. Nc3 {[%emt 0:00:03]} d6 {[%emt 0:00:43]} 6. f3 {[%emt 0:00:25]} e5 {[%emt 0:00:54]} 7. Nb3 {[%emt 0:00:05]} Be7 {[%emt 0:00:50]} 8. Be3 {[%emt 0:00:39]} Be6 {[%emt 0:01:04]} 9. Nd5 {[%emt 0:03:08]} Bxd5 {[%emt 0:00:32]} 10. exd5 {[%emt 0:00:04]} Nb4 {[%emt 0:01:17]} 11. c4 {[%emt 0:00:30]} a5 {[%emt 0:03:34]} 12. Qd2 {[%emt 0:05:51]} b6 {[%emt 0:07:37]} 13. Be2 {[%emt 0:06:40]} O-O {[%emt 0:00:19]} 14. O-O {[%emt 0:01:07]} Nd7 {[%emt 0:05:50]} 15. Kh1 {[%emt 0:24:17]} f5 {[%emt 0:00:40]} 16. f4 {[%emt 0:05:42]} Na6 {[%emt 0:03:43]} 17. g4 {[%emt 0:11:10]} a4 {[%emt 0:11:14]} 18. Nc1 {[%emt 0:02:11]} b5 {[%emt 0:09:15]} 19. cxb5 {[%emt 0:12:23]} Nc7 {[%emt 0:04:59]} 20. b6 {[%emt 0:02:15]} Ne8 {[%emt 0:01:17]} 21. b7 {[%emt 0:08:16]} Rb8 {[%emt 0:00:57]} 22. Nd3 {[%emt 0:10:08]} Rxb7 {[%emt 0:00:43]} 23. fxe5 {[%emt 0:02:00]} dxe5 {[%emt 0:01:21]} 24. gxf5 {[%emt 0:01:22]} Nd6 {[%emt 0:08:35]} 25. Nf2 {[%emt 0:03:48]} Nxf5 {[%emt 0:01:35]} 26. Ne4 {[%emt 0:00:12]} Nxe3 {[%emt 0:02:00]} 27. Qxe3 {[%emt 0:00:02]} Nf6 {[%emt 0:01:59]} 28. Nxf6+ {[%emt 0:01:05]} Rxf6 {[%emt 0:07:04]} 29. Rxf6 {[%emt 0:00:16]} Bxf6 {[%emt 0:00:24]} 30. Qe4 {[%emt 0:00:31]} Rxb2 {[%emt 0:02:11]} 31. Bd3 {[%emt 0:00:48]} g6 {[%emt 0:01:17]} 32. Rg1 {[%emt 0:00:41]} Rf2 {[%emt 0:05:30]} 33. Qxa4 {[%emt 0:00:34]} Qxd5+ {[%emt 0:00:38]} 34. Be4 {[%emt 0:00:31]} Qxa2 {[%emt 0:00:31]} 35. Qe8+ {[%emt 0:00:29]} Kg7 {[%emt 0:00:02]} 36. Qd7+ {[%emt 0:00:26]} Qf7 {[%emt 0:00:53]} 37. Qg4 {[%emt 0:00:35]} Be7 {[%emt 0:02:25]} 38. Qg3 {[%emt 0:00:21]} Qf4 {[%emt 0:07:07]} 39. Bb1 {[%emt 0:00:33]} Bg5 {[%emt 0:05:11]} 40. Bd3 {[%emt 0:00:37]} e4 {[%emt 0:03:26]} 41. Bb5 {[%emt 0:06:00]} e3 {[%emt 0:08:36]} 42. Qxf4 {[%emt 0:04:03]} Bxf4 {[%emt 0:00:09]} 43. Rg2 {[%emt 0:00:06]} Rd2 {[%emt 0:01:49]} 44. Re2 {[%emt 0:03:49]} Kf6 {[%emt 0:00:09]} 45. Kg2 {[%emt 0:00:28]} Rd5 {[%emt 0:05:24]} 46. Bc6 {[%emt 0:06:41]} Rh5 {[%emt 0:03:28]} 47. h3 {[%emt 0:01:02]} Rg5+ {[%emt 0:00:32]} 48. Kf3 {[%emt 0:01:23]} Ke5 {[%emt 0:01:07]} 49. Rg2 {[%emt 0:00:03]} Rf5 {[%emt 0:06:37]} 50. Bd7 {[%emt 0:01:18]} Rf7 {[%emt 0:00:42]} 51. Bb5 {[%emt 0:01:47]} Rb7 {[%emt 0:01:27]} 52. Ba6 {[%emt 0:01:47]} Rb3 {[%emt 0:00:58]} 53. Bc8 {[%emt 0:01:17]} Rc3 {[%emt 0:00:49]} 54. Bd7 {[%emt 0:00:28]} Rc1 {[%emt 0:02:45]} 55. Ra2 {[%emt 0:02:57]} Rf1+ {[%emt 0:02:36]} 56. Kg2 {[%emt 0:02:14]} Rd1 {[%emt 0:00:07]} 57. Bg4 {[%emt 0:02:39]} Rd2+ {[%emt 0:00:24]} 58. Rxd2 {[%emt 0:00:06]} exd2 {[%emt 0:00:01]} 59. Kf2 {[%emt 0:00:25]} Ke4 {[%emt 0:01:11]} 60. Ke2 {[%emt 0:00:09]} h5 {[%emt 0:00:34]} 61. Bd7 {[%emt 0:01:32]} g5 {[%emt 0:01:14]} 62. Be8 {[%emt 0:00:32]} g4 {[%emt 0:00:45]} 63. hxg4 {[%emt 0:00:39]} hxg4 {[%emt 0:00:42]} 64. Bd7 {[%emt 0:00:21]} g3 {[%emt 0:00:08]} 65. Bc6+ {[%emt 0:00:20]} Kd4 {[%emt 0:00:19]} 66. Bg2 {[%emt 0:00:12]} Kc3 {[%emt 0:00:15]} 67. Kd1 {[%emt 0:01:10]} Kd3 {[%emt 0:00:07]} 68. Bb7 {[%emt 0:00:22]} Ke3 {[%emt 0:00:07]} 0-1

[Event "LEM Niedersachsen-A-Open 2025"]
[Site "Verden"]
[Date "2025.01.04"]
[Round "5.4"]
[White "Becker, Stefan"]
[Black "Soellig, Martin"]
[Result "1/2-1/2"]
[ECO "A13"]
[WhiteElo "2036"]
[BlackElo "1930"]
[Annotator "NA RC"]
[PlyCount "50"]
[EventDate "2024.12.27"]
[EventType "swiss"]
[EventCountry "GER"]
[SourceTitle "playchess.com"]
[Source "ChessBase"]
[SourceQuality "1"]
[TimeControl "40/5400+30:1800+30"]

1. Nf3 {[%emt 0:00:18]} Nf6 {[%emt 0:00:12]} 2. g3 {[%emt 0:00:21]} b6 {[%emt 0:00:17]} 3. Bg2 {[%emt 0:00:09]} Bb7 {[%emt 0:00:06]} 4. O-O {[%emt 0:00:08]} e6 {[%emt 0:00:25]} 5. c4 {[%emt 0:00:19]} d5 {[%emt 0:01:41]} 6. cxd5 {[%emt 0:01:21]} Nxd5 {[%emt 0:00:40] A13: English Opening: 1...e6.} 7. Re1 {[%emt 0:03:13]} Be7 {[%emt 0:01:20]} 8. e4 {[%emt 0:00:30]} Nf6 {[%emt 0:01:28]} 9. Nc3 {[%emt 0:00:11]} O-O {[%emt 0:01:00]} 10. d4 {[%emt 0:01:07]} c5 {[%emt 0:03:41]} 11. Bf4 {[%emt 0:03:59]} Nbd7 {[%emt 0:09:52]} 12. d5 {[%emt 0:08:25]} exd5 {[%emt 0:05:30]} 13. exd5 {[%emt 0:00:45]} Nh5 {[%emt 0:00:39]} 14. Be3 {[%emt 0:02:46]} Bf6 {[%emt 0:04:59]} 15. Nb5 {[%emt 0:12:43]} g6 {[%emt 0:02:38]} 16. Nd6 {[%emt 0:03:46]} (16. Qd2 $18) 16... Qc7 {[%emt 0:06:01]} 17. Nxb7 {[%emt 0:02:12]} Qxb7 {[%emt 0:00:33]} 18. Qb3 {[%emt 0:12:30]} Rad8 {[%emt 0:05:38]} 19. Nd2 {[%emt 0:00:54]} Qc7 {[%emt 0:03:33]} 20. Ne4 {[%emt 0:04:13]} Be5 {[%emt 0:02:52]} 21. f4 {[%emt 0:06:38]} Bd6 {[%emt 0:04:22]} 22. Qb5 {[%emt 0:01:51]} ({White should try} 22. Qc3 $16) 22... Ndf6 {[%emt 0:02:11]} 23. Nxf6+ {[%emt 0:03:48]} Nxf6 {[%emt 0:00:10]} 24. h3 {[%emt 0:00:15]} Nh5 {[%emt 0:02:41]} 25. Bf2 {[%emt 0:00:42]} Qd7 $11 {[%emt 0:01:43]} 1/2-1/2

[Event "LEM Niedersachsen-A-Open 2025"]
[Site "Verden"]
[Date "2025.01.04"]
[Round "5.5"]
[White "Scheffner, Jarno"]
[Black "Hoellman, Ludger"]
[Result "1/2-1/2"]
[ECO "B12"]
[WhiteElo "1925"]
[BlackElo "2026"]
[Annotator "NA RC"]
[PlyCount "59"]
[EventDate "2024.12.27"]
[EventType "swiss"]
[EventCountry "GER"]
[SourceTitle "playchess.com"]
[Source "ChessBase"]
[SourceQuality "1"]
[TimeControl "40/5400+30:1800+30"]

1. e4 {[%emt 0:00:03]} c6 {[%emt 0:00:04]} 2. d4 {[%emt 0:00:04]} d5 {[%emt 0:00:05]} 3. f3 {[%emt 0:00:04]} Qb6 {[%emt 0:03:02]} 4. Nc3 {[%emt 0:01:38]} dxe4 {[%emt 0:00:08]} 5. fxe4 {[%emt 0:00:59]} e5 {[%emt 0:00:06]} 6. Nf3 {[%emt 0:00:44] B12: Caro-Kann: Advance Variation.} exd4 {[%emt 0:00:08]} 7. Qxd4 {[%emt 0:00:58]} Qxd4 {[%emt 0:00:22]} 8. Nxd4 {[%emt 0:00:08]} Bd6 {[%emt 0:00:09]} 9. Bd3 {[%emt 0:02:06]} Ne7 {[%emt 0:01:01]} 10. Bd2 {[%emt 0:00:32]} Bg4 {[%emt 0:06:07]} 11. Nf5 {[%emt 0:01:10]} Bxf5 {[%emt 0:04:15]} 12. exf5 {[%emt 0:01:24]} Nd7 {[%emt 0:00:14]} 13. O-O {[%emt 0:04:56]} Nf6 {[%emt 0:13:12]} 14. Rae1 {[%emt 0:01:20]} O-O-O {[%emt 0:05:14]} 15. Bg5 {[%emt 0:02:10]} Bc5+ {[%emt 0:08:47]} 16. Kh1 {[%emt 0:00:33]} Ned5 {[%emt 0:04:48]} 17. Nxd5 {[%emt 0:10:39]} Rxd5 {[%emt 0:00:02]} 18. Bxf6 {[%emt 0:03:04]} gxf6 {[%emt 0:00:02]} 19. Re4 {[%emt 0:00:21]} Rd4 {[%emt 0:07:33]} 20. Rfe1 {[%emt 0:08:01]} Rhd8 {[%emt 0:02:11]} 21. g3 {[%emt 0:01:36]} h6 {[%emt 0:17:32]} 22. Kg2 {[%emt 0:01:36]} Rxe4 {[%emt 0:02:33]} 23. Rxe4 {[%emt 0:00:02]} Kd7 {[%emt 0:01:07]} 24. Bc4 {[%emt 0:06:42]} Re8 {[%emt 0:01:33]} 25. Rh4 {[%emt 0:02:54]} Bf8 {[%emt 0:00:37]} 26. Kf3 $14 {[%emt 0:01:33]} ({But not} 26. Bxf7 Re2+ 27. Kh3 Rxc2 $11) 26... Re5 {[%emt 0:00:11]} 27. Rd4+ {[%emt 0:02:56]} Ke8 {[%emt 0:01:00]} 28. g4 {[%emt 0:00:31]} h5 {[%emt 0:01:01]} 29. Bd3 {[%emt 0:01:04]} h4 {[%emt 0:03:02]} 30. Re4 {[%emt 0:25:09]} 1/2-1/2

[Event "LEM Niedersachsen-A-Open 2025"]
[Site "Verden"]
[Date "2025.01.04"]
[Round "5.6"]
[White "Thomas, Jeremy"]
[Black "Ploog, Martin"]
[Result "1/2-1/2"]
[ECO "B32"]
[WhiteElo "1935"]
[BlackElo "2001"]
[Annotator "NA RC"]
[PlyCount "51"]
[EventDate "2024.12.27"]
[EventType "swiss"]
[EventCountry "GER"]
[SourceTitle "playchess.com"]
[Source "ChessBase"]
[SourceQuality "1"]
[TimeControl "40/5400+30:1800+30"]

1. e4 {[%emt 0:00:07]} c5 {[%emt 0:00:30]} 2. Nf3 {[%emt 0:00:05]} Nc6 {[%emt 0:00:11]} 3. d4 {[%emt 0:00:05]} cxd4 {[%emt 0:00:09]} 4. Nxd4 {[%emt 0:00:06]} e5 {[%emt 0:00:12]} 5. Nb5 {[%emt 0:00:26]} d6 {[%emt 0:00:16]} 6. N1c3 {[%emt 0:00:21]} a6 {[%emt 0:00:20]} 7. Na3 {[%emt 0:00:07]} Be7 {[%emt 0:00:22] 7...Be6 is the modern continuation.} 8. Be3 {[%emt 0:00:42] B32: Sicilian: Löwenthal and Kalashnikov Variations.} Nf6 {[%emt 0:06:16]} 9. Nc4 {[%emt 0:01:10]} b5 {[%emt 0:02:44]} 10. Nb6 {[%emt 0:01:22]} Rb8 {[%emt 0:00:17]} 11. Nxc8 {[%emt 0:00:19]} Qxc8 {[%emt 0:00:22]} 12. Be2 {[%emt 0:14:10]} O-O {[%emt 0:07:01]} 13. a3 {[%emt 0:08:02]} Na5 {[%emt 0:07:34]} 14. O-O {[%emt 0:17:32]} h6 {[%emt 0:11:47]} 15. Qd3 {[%emt 0:03:24]} Nc4 {[%emt 0:09:07]} 16. Bc1 {[%emt 0:00:28]} Qc6 $146 {[%emt 0:04:17]} ({Predecessor:} 16... Qd8 17. b3 Nb6 18. Rd1 Nfd7 19. Be3 Rc8 20. a4 b4 21. Nd5 Nxd5 22. Qxd5 Rxc2 23. Bxa6 {1-0 Ghafourian,A (2113)-Chabris,C (2054) Titled Tuesday intern op 12th Mar Late blitz 2024 (2)}) 17. a4 {[%emt 0:03:45]} Rfc8 {[%emt 0:02:25]} 18. axb5 {[%emt 0:08:52]} axb5 {[%emt 0:00:11]} 19. Rd1 {[%emt 0:12:18]} b4 $11 {[%emt 0:08:20]} 20. Nd5 {[%emt 0:02:06]} Nxd5 {[%emt 0:00:24]} 21. exd5 {[%emt 0:00:32]} Qd7 {[%emt 0:02:33]} 22. Qg3 {[%emt 0:02:57]} f5 {[%emt 0:11:34]} 23. Bxh6 {[%emt 0:05:28]} Bf6 {[%emt 0:00:46]} 24. Bg5 {[%emt 0:03:16]} Bxg5 {[%emt 0:10:01]} 25. Qxg5 {[%emt 0:00:02]} Qf7 {[%emt 0:00:34]} 26. Bh5 {[%emt 0:06:09]} 1/2-1/2

[Event "LEM Niedersachsen-A-Open 2025"]
[Site "Verden"]
[Date "2025.01.04"]
[Round "5.7"]
[White "Bundan, Edward"]
[Black "Aden, Meino"]
[Result "1-0"]
[ECO "C07"]
[WhiteElo "1822"]
[BlackElo "1933"]
[Annotator "NA RC"]
[PlyCount "73"]
[EventDate "2024.12.27"]
[EventType "swiss"]
[EventCountry "GER"]
[SourceTitle "playchess.com"]
[Source "ChessBase"]
[SourceQuality "1"]
[TimeControl "40/5400+30:1800+30"]

1. e4 {[%emt 0:00:03]} e6 {[%emt 0:00:04]} 2. d4 {[%emt 0:00:04]} d5 {[%emt 0:00:02]} 3. Nd2 {[%emt 0:00:06]} c5 {[%emt 0:00:05]} 4. exd5 {[%emt 0:00:06]} Qxd5 {[%emt 0:00:06]} 5. Ngf3 {[%emt 0:00:09]} Nc6 {[%emt 0:00:18]} 6. Bc4 {[%emt 0:00:08] C07: French Tarrasch: 3...c5, 4 Ngf3 and 4 exd5 Qxd5.} Qd6 {[%emt 0:00:06]} (6... Qd7 $14) 7. Ne4 {[%emt 0:08:45]} Qc7 {[%emt 0:01:15]} 8. dxc5 {[%emt 0:04:17]} Bxc5 {[%emt 0:04:12]} 9. Nxc5 {[%emt 0:01:58]} Qa5+ {[%emt 0:00:43]} 10. c3 {[%emt 0:00:24]} Qxc5 {[%emt 0:00:06]} 11. Qe2 {[%emt 0:00:31]} Bd7 {[%emt 0:03:03]} 12. Be3 {[%emt 0:01:54]} Qh5 {[%emt 0:01:15]} 13. O-O-O {[%emt 0:04:26]} Nf6 {[%emt 0:04:49]} 14. Bg5 {[%emt 0:07:27]} h6 {[%emt 0:04:08]} 15. Bxf6 {[%emt 0:00:39]} ({White should try} 15. Bh4) 15... gxf6 {[%emt 0:00:13]} 16. b4 {[%emt 0:26:05]} Qg4 {[%emt 0:01:42]} (16... Ne5 $11 {was preferable.}) 17. g3 {[%emt 0:04:45]} Rc8 {[%emt 0:17:40]} 18. Qd3 {[%emt 0:06:16]} Rd8 {[%emt 0:14:31]} 19. h3 {[%emt 0:01:04]} Qg6 {[%emt 0:03:15]} 20. Qe3 {[%emt 0:03:09]} O-O {[%emt 0:05:07]} 21. Bd3 {[%emt 0:01:04]} Qg7 $11 {[%emt 0:00:08]} 22. Bc2 {[%emt 0:02:58]} Ne7 {[%emt 0:03:18]} 23. c4 {[%emt 0:02:07]} Nc6 {[%emt 0:03:18]} 24. a3 {[%emt 0:02:07]} e5 {[%emt 0:06:30]} 25. Be4 {[%emt 0:03:56]} f5 {[%emt 0:03:45]} 26. Bxc6 {[%emt 0:03:32]} Bxc6 {[%emt 0:00:13]} 27. Rxd8 {[%emt 0:00:39]} Rxd8 {[%emt 0:00:06]} 28. Rd1 {[%emt 0:00:22]} Rxd1+ {[%emt 0:00:22]} 29. Kxd1 {[%emt 0:00:05]} e4 {[%emt 0:01:37]} 30. Nd4 {[%emt 0:00:51]} f4 {[%emt 0:03:30]} 31. gxf4 {[%emt 0:00:20]} Ba4+ {[%emt 0:00:15]} 32. Kd2 {[%emt 0:01:46]} Qg1 {[%emt 0:00:36]} 33. Qg3+ {[%emt 0:00:55]} Qxg3 {[%emt 0:00:32]} 34. fxg3 {[%emt 0:00:01]} Bd7 {[%emt 0:00:13]} 35. g4 {[%emt 0:00:15]} h5 {[%emt 0:00:17]} 36. f5 {[%emt 0:00:17]} Kg7 {[%emt 0:01:47]} 37. g5 {[%emt 0:01:11]} 1-0